bitfinex-derivatives/quotes_BTCF0:USTF0_20250924
["timestamp","ask_amount","ask_price","bid_price","bid_amount"]
[1758716918713,1.56640202,113070.0,113060.0,0.11045034]
[1758716920413,1.2876014,113070.0,113060.0,0.11045034]
[1758716922119,1.56640202,113070.0,113060.0,0.02199]
[1758716925318,0.4853614,113070.0,113060.0,0.02199]
[1758716925525,1.2874414,113070.0,113060.0,0.38920992]
[1758716925724,1.2874414,113070.0,113060.0,0.1104093]
[1758716925925,1.2874414,113070.0,113060.0,0.38920992]
[1758716927124,1.2874414,113070.0,113060.0,0.47765461]
[1758716929629,1.2874414,113070.0,113060.0,0.49811302]
[1758716931435,1.2874414,113070.0,113060.0,0.1308931]
[1758716931727,1.56624202,113070.0,113060.0,0.1308931]
[1758716931922,1.96624202,113070.0,113060.0,0.02045841]
[1758716939230,1.96624202,113070.0,113060.0,0.12991771]
[1758716944241,1.96624202,113070.0,113060.0,0.10887771]
[1758716944537,1.96624202,113070.0,113060.0,0.04246841]
[1758716944939,1.96624202,113070.0,113060.0,0.02045841]
[1758716947240,1.96624202,113070.0,113060.0,0.10887771]
[1758716951137,1.96624202,113070.0,113060.0,0.02045841]
[1758716952936,1.96624202,113070.0,113060.0,0.10887771]
[1758716953537,1.96624202,113070.0,113060.0,0.02045841]
[1758716953841,0.1238293,113060.0,113050.0,0.17943202]
[1758716954035,0.76342992,113060.0,113050.0,0.10882304]
[1758716955048,0.76342992,113060.0,113050.0,0.11082304]
[1758716955645,0.76342992,113060.0,113050.0,0.12082304]
[1758716961751,0.76442992,113060.0,113050.0,0.11882304]
[1758716962143,1.12522992,113060.0,113050.0,0.11882304]
[1758716962345,1.12522992,113060.0,113050.0,0.11382304]
[1758716964754,1.12522992,113060.0,113050.0,0.005]
[1758716966554,1.40429454,113060.0,113050.0,0.005]
[1758716973862,1.40429454,113060.0,113050.0,0.0934271]
[1758716974161,1.12536192,113060.0,113050.0,0.1155871]
[1758716974359,1.92720192,113060.0,113050.0,0.1155871]
[1758716974660,2.20613454,113060.0,113050.0,0.1155871]
[1758716974849,1.92720192,113060.0,113050.0,0.1155871]
[1758716979260,2.20613454,113060.0,113050.0,0.1155871]
[1758716985270,2.20613454,113060.0,113050.0,0.0934271]
[1758716987168,2.20605454,113060.0,113050.0,0.0934271]
[1758716991974,2.20605454,113060.0,113050.0,0.1164871]
[1758716992982,2.20605454,113060.0,113050.0,0.0934271]
[1758716993778,1.03694262,113060.0,113050.0,0.39541972]
[1758716993983,1.83866262,113060.0,113050.0,0.39541972]
[1758716994182,1.83866262,113060.0,113050.0,0.4162578]
[1758717000186,1.83866262,113060.0,113050.0,0.13732518]
[1758717000675,1.83866262,113060.0,113050.0,0.4162578]
[1758717004091,1.83866262,113060.0,113050.0,0.13732518]
[1758717004294,1.83866262,113060.0,113050.0,0.4162578]
[1758717006894,1.11706262,113060.0,113050.0,0.4162578]
[1758717007085,1.83866262,113060.0,113050.0,0.4162578]
[1758717007994,0.75801,113060.0,113050.0,0.50471032]
[1758717008293,1.55961,113060.0,113050.0,0.90471032]
[1758717008902,0.74479,113060.0,113050.0,1.19525294]
[1758717009102,0.3618,113060.0,113050.0,1.19525294]
[1758717011803,0.3618,113060.0,113050.0,1.99681294]
[1758717020709,0.001,113060.0,113050.0,1.99681294]
[1758717021605,0.001,113060.0,113050.0,2.15584902]
[1758717022705,0.001,113060.0,113050.0,1.59798378]
[1758717022908,0.001,113060.0,113050.0,2.15584902]
[1758717026604,0.001,113060.0,113050.0,1.87674143]
[1758717030308,0.001,113060.0,113050.0,1.87678143]
[1758717038611,0.001,113060.0,113050.0,1.71774535]
[1758717039510,0.001,113060.0,113050.0,1.31774535]
[1758717041116,0.001,113060.0,113050.0,1.47678143]
[1758717042610,0.001,113060.0,113050.0,1.31774535]
[1758717043412,0.001,113060.0,113050.0,1.47692524]
[1758717044514,0.001,113060.0,113050.0,1.83772524]
[1758717048207,0.001,113060.0,113050.0,1.67854535]
[1758717051817,0.001,113060.0,113050.0,2.07854535]
[1758717054123,0.001,113060.0,113050.0,2.28539133]
[1758717056625,0.001,113060.0,113050.0,2.07854535]
[1758717056828,0.001,113060.0,113050.0,2.23759703]
[1758717061028,0.001,113060.0,113050.0,1.83759703]
[1758717061233,0.38379,113080.0,113070.0,0.1212123]
[1758717061437,0.38379,113080.0,113070.0,1.22206674]
[1758717061628,0.38379,113080.0,113070.0,1.23931307]
[1758717061827,0.38379,113080.0,113070.0,1.32776559]
[1758717062028,0.39667,113080.0,113070.0,1.31615559]
[1758717062428,0.39667,113080.0,113070.0,0.51495559]
[1758717062631,0.39667,113080.0,113070.0,1.31615559]
[1758717063832,0.40767,113080.0,113070.0,1.31615559]
[1758717064246,0.41167,113080.0,113070.0,1.31715559]
[1758717065542,0.5000745,113080.0,113070.0,1.03839794]
[1758717065743,0.5000745,113080.0,113070.0,1.31715559]
[1758717066042,0.9000745,113080.0,113070.0,0.13153931]
[1758717066244,1.17883215,113080.0,113070.0,0.13153931]
[1758717067145,1.17883215,113080.0,113070.0,0.04308679]
[1758717067345,1.17883215,113080.0,113070.0,0.02189679]
[1758717068448,1.98003215,113080.0,113070.0,0.02189679]
[1758717069546,1.98003215,113080.0,113070.0,0.001]
[1758717081244,2.11013215,113080.0,113070.0,0.001]
[1758717083649,2.83013215,113080.0,113070.0,0.001]
[1758717086149,1.71013215,113080.0,113070.0,0.001]
[1758717086350,0.90893215,113080.0,113070.0,0.001]
[1758717086652,1.71101215,113080.0,113070.0,0.001]
[1758717088561,1.98997656,113080.0,113070.0,0.001]
[1758717088952,2.00787271,113080.0,113070.0,0.001]
[1758717090150,1.20579271,113080.0,113070.0,0.001]
[1758717090352,2.00795271,113080.0,113070.0,0.001]
[1758717095666,1.20579271,113080.0,113070.0,0.001]
[1758717095866,2.00779271,113080.0,113070.0,0.001]
[1758717098268,2.00775271,113080.0,113070.0,0.001]
[1758717101466,2.00751019,113080.0,113070.0,0.001]
[1758717102170,2.72751019,113080.0,113070.0,0.001]
[1758717107674,3.00637122,113080.0,113070.0,0.001]
[1758717107973,2.72751019,113080.0,113070.0,0.001]
[1758717114872,2.00751019,113080.0,113070.0,0.001]
[1758717124889,0.1248423,113070.0,113060.0,0.13128798]
[1758717125087,0.76450333,113070.0,113060.0,0.13128798]
[1758717125386,1.56638333,113070.0,113060.0,0.13128798]
[1758717127384,1.57138333,113070.0,113060.0,0.13128798]
[1758717128091,1.93518333,113070.0,113060.0,0.13228798]
[1758717130190,1.93518333,113070.0,113060.0,0.04386878]
[1758717130583,1.13330333,113070.0,113060.0,0.04386878]
[1758717130792,1.93522333,113070.0,113060.0,0.04386878]
[1758717132695,1.93522333,113070.0,113060.0,0.02111878]
[1758717136095,2.21408436,113070.0,113060.0,0.02111878]
[1758717136290,1.93522333,113070.0,113060.0,0.02111878]
[1758717147406,2.21408436,113070.0,113060.0,0.02111878]
[1758717147812,1.93522333,113070.0,113060.0,0.02111878]
[1758717148708,1.9352356,113070.0,113060.0,0.02111878]
[1758717155211,1.6563623,113070.0,113060.0,0.02111878]
[1758717155406,1.9352356,113070.0,113060.0,0.02111878]
[1758717156914,1.6563623,113070.0,113060.0,0.02111878]
[1758717157213,1.9352356,113070.0,113060.0,0.02111878]
[1758717162121,1.9352356,113070.0,113060.0,0.04414878]
[1758717162320,1.9352356,113070.0,113060.0,0.02111878]
[1758717164418,1.9352356,113070.0,113060.0,0.001]
[1758717165919,1.9352356,113070.0,113060.0,0.02403]
[1758717166218,1.9352356,113070.0,113060.0,0.001]
[1758717167220,1.9352356,113070.0,113060.0,0.02403]
[1758717167421,1.9352356,113070.0,113060.0,0.001]
[1758717173427,1.9352356,113070.0,113060.0,0.02265]
[1758717173816,1.9352356,113070.0,113060.0,0.1110701]
[1758717174329,1.9352356,113070.0,113060.0,0.02265]
[1758717174626,1.9351556,113070.0,113060.0,0.02265]
[1758717174827,1.9351556,113070.0,113060.0,0.1110701]
[1758717176426,1.9350756,113070.0,113060.0,0.1110701]
[1758717176622,1.1333156,113070.0,113060.0,0.1110701]
[1758717176828,1.6561223,113070.0,113060.0,0.5110701]
[1758717177628,1.1333156,113070.0,113060.0,0.5110701]
[1758717177835,1.56787,113070.0,113060.0,0.87838809]
[1758717178626,1.56787,113070.0,113060.0,0.59951479]
[1758717180130,0.76603,113070.0,113060.0,0.88999809]
[1758717180335,0.75248,113070.0,113060.0,0.88999809]
[1758717180521,0.67570037,113070.0,113060.0,0.88999809]
[1758717180727,0.31490037,113070.0,113060.0,0.88999809]
[1758717181632,0.31490037,113070.0,113060.0,1.04900901]
[1758717184137,0.003,113070.0,113060.0,1.04900901]
[1758717187033,0.003,113070.0,113060.0,1.85116901]
[1758717188135,0.4651523,113070.0,113060.0,0.75852571]
[1758717188337,0.4867823,113070.0,113060.0,1.16068571]
[1758717188737,0.4867823,113070.0,113060.0,1.00167479]
[1758717189240,0.4867823,113070.0,113060.0,0.19951479]
[1758717192242,0.39837,113070.0,113060.0,0.19951479]
[1758717197942,0.4867823,113070.0,113060.0,0.19951479]
[1758717204458,1.2884623,113070.0,113060.0,0.19951479]
[1758717207356,1.2884623,113070.0,113060.0,0.22048947]
[1758717209859,1.2884623,113070.0,113060.0,0.13206937]
[1758717210060,1.5673356,113070.0,113060.0,0.13206937]
[1758717210458,1.5673356,113070.0,113060.0,0.29108029]
[1758717210658,1.56730106,113070.0,113060.0,0.29108029]
[1758717210959,1.56730106,113070.0,113060.0,0.26901488]
[1758717211258,1.56730106,113070.0,113060.0,0.11000396]
[1758717211663,1.56730106,113070.0,113060.0,0.13191396]
[1758717217370,1.2884623,113070.0,113060.0,0.13191396]
[1758717217571,1.56730106,113070.0,113060.0,0.13191396]
[1758717223374,1.56730106,113070.0,113060.0,0.02155927]
[1758717227578,1.56730106,113070.0,113060.0,0.02124937]
[1758717229375,2.24613982,113070.0,113060.0,0.02124937]
[1758717231279,2.24613982,113070.0,113060.0,0.001]
[1758717231478,2.26427222,113070.0,113060.0,0.001]
[1758717240484,2.26429022,113070.0,113060.0,0.001]
[1758717243879,2.26426121,113070.0,113060.0,0.001]
[1758717249186,1.70658369,113070.0,113060.0,0.001]
[1758717249392,2.26426121,113070.0,113060.0,0.001]
[1758717262493,2.26378238,113070.0,113060.0,0.001]
[1758717266004,2.24613982,113070.0,113060.0,0.001]
[1758717266204,2.26377403,113070.0,113060.0,0.001]
[1758717267705,1.70609651,113070.0,113060.0,0.001]
[1758717268005,2.26377403,113070.0,113060.0,0.001]
[1758717270707,2.26386807,113070.0,113060.0,0.001]
[1758717274604,1.90306807,113070.0,113060.0,0.001]
[1758717274810,2.62466807,113070.0,113060.0,0.001]
[1758717275604,2.34578229,113070.0,113060.0,0.001]
[1758717276409,2.06689651,113070.0,113060.0,0.001]
[1758717276612,2.34578229,113070.0,113060.0,0.001]
[1758717279412,1.94578229,113070.0,113060.0,0.001]
[1758717286319,1.92814808,113070.0,113060.0,0.001]
[1758717286617,1.94630584,113070.0,113060.0,0.001]
[1758717289823,1.92814808,113070.0,113060.0,0.001]
[1758717290122,2.20703386,113070.0,113060.0,0.001]
[1758717290321,2.22499687,113070.0,113060.0,0.001]
[1758717294023,1.94611109,113070.0,113060.0,0.001]
[1758717294226,1.94611109,113070.0,113060.0,0.0894201]
[1758717294626,2.22499687,113070.0,113060.0,0.0894201]
[1758717294826,2.22499687,113070.0,113060.0,0.001]
[1758717295331,0.86554531,113070.0,113060.0,0.5107802]
[1758717295525,1.66698531,113070.0,113060.0,0.5107802]
[1758717295827,1.94587109,113070.0,113060.0,0.5107802]
[1758717296329,1.94611106,113070.0,113060.0,0.53106716]
[1758717300034,1.92790808,113070.0,113060.0,0.53106892]
[1758717302336,1.94548355,113070.0,113060.0,0.53106892]
[1758717302537,1.94548355,113070.0,113060.0,0.61951361]
[1758717303442,0.77674547,113070.0,113060.0,0.89839939]
[1758717303744,1.56524547,113070.0,113060.0,0.89839939]
[1758717304437,0.76380547,113070.0,113060.0,0.89839939]
[1758717304636,0.76380547,113070.0,113060.0,1.06898737]
[1758717307840,0.76380547,113070.0,113060.0,0.91000939]
[1758717313044,0.76380547,113070.0,113060.0,0.63112361]
[1758717313246,0.76380547,113070.0,113060.0,0.91000939]
[1758717315637,0.40300547,113070.0,113060.0,0.91000939]
[1758717315947,0.04220547,113070.0,113060.0,0.91000939]
[1758717323354,0.003,113070.0,113060.0,0.91000939]
[1758717324052,0.02412,113070.0,113060.0,0.91000939]
[1758717327350,0.003,113070.0,113060.0,0.91000939]
[1758717331462,0.003,113070.0,113060.0,1.06898737]
[1758717332558,0.003,113070.0,113060.0,1.34754625]
[1758717336063,0.003,113070.0,113060.0,1.18856827]
[1758717339563,0.003,113070.0,113060.0,0.78856827]
[1758717342469,0.003,113070.0,113060.0,0.78911978]
[1758717346081,0.003,113070.0,113060.0,0.78870339]
[1758717346282,0.003,113070.0,113060.0,0.94779715]
[1758717346982,0.003,113070.0,113060.0,0.78870339]
[1758717353286,0.003,113070.0,113060.0,0.94784902]
[1758717357284,0.003,113070.0,113060.0,1.30864902]
[1758717359690,0.003,113070.0,113060.0,1.14996377]
[1758717362290,0.003,113070.0,113060.0,1.30911969]
[1758717363287,0.003,113070.0,113060.0,1.30906363]
[1758717374601,0.003,113070.0,113060.0,0.75161897]
[1758717374801,0.003,113070.0,113060.0,1.30906363]
[1758717377599,0.003,113070.0,113060.0,1.14990771]
[1758717384009,0.003,113070.0,113060.0,1.30906363]
[1758717384812,0.003,113070.0,113060.0,1.42863004]
[1758717385012,0.003,113070.0,113060.0,1.14990771]
[1758717385814,0.003,113070.0,113060.0,1.42863004]
[1758717386011,0.003,113070.0,113060.0,1.14990771]
[1758717386509,0.003,113070.0,113060.0,1.42863004]
[1758717386704,0.38258,113090.0,113080.0,0.03314]
[1758717386905,0.38258,113090.0,113080.0,1.50077831]
[1758717387306,0.38258,113090.0,113080.0,1.589223]
[1758717387814,0.3956,113090.0,113080.0,1.589223]
[1758717388416,0.4016,113090.0,113080.0,1.590223]
[1758717388617,0.4086,113090.0,113080.0,1.590223]
[1758717390011,0.4086,113090.0,113080.0,1.03277834]
[1758717390214,0.4969969,113090.0,113080.0,1.590223]
[1758717390717,0.4859969,113090.0,113080.0,1.589223]
[1758717390918,0.4869969,113090.0,113080.0,1.589223]
[1758717392517,0.4869969,113090.0,113080.0,1.31044708]
[1758717393616,0.3986,113090.0,113080.0,1.31044708]
[1758717396829,0.4869969,113090.0,113080.0,1.31044708]
[1758717397526,0.4869969,113090.0,113080.0,1.03177834]
[1758717397731,0.4869969,113090.0,113080.0,1.31044708]
[1758717399036,0.4869969,113090.0,113080.0,1.02016834]
[1758717399234,0.4869969,113090.0,113080.0,1.29883708]
[1758717399635,0.4869969,113090.0,113080.0,1.02016834]
[1758717399935,0.4869969,113090.0,113080.0,1.29883708]
[1758717403227,0.3986,113090.0,113080.0,1.29883708]
[1758717403835,0.473977,113090.0,113080.0,1.31044708]
[1758717404039,0.38558,113090.0,113080.0,1.31044708]
[1758717407642,0.3638,113090.0,113080.0,1.27730708]
[1758717410942,0.4521968,113090.0,113080.0,1.27730708]
[1758717411345,0.4521968,113090.0,113080.0,1.28891708]
[1758717413242,0.38617,113090.0,113080.0,0.51067708]
[1758717413450,0.4745669,113090.0,113080.0,1.31139708]
[1758717414644,0.38617,113090.0,113080.0,1.31139708]
[1758717416245,0.3638,113090.0,113080.0,1.31139708]
[1758717416442,0.3638,113090.0,113080.0,1.47057482]
[1758717418849,0.003,113090.0,113080.0,1.47057482]
[1758717423653,0.003,113090.0,113080.0,1.31139708]
[1758717425756,0.003,113090.0,113080.0,1.67219708]
[1758717429666,0.003,113090.0,113080.0,2.07219708]
[1758717434465,0.001,113090.0,113080.0,2.07219708]
[1758717434665,0.002,113090.0,113080.0,2.07219708]
[1758717435464,0.001,113090.0,113080.0,2.07719708]
[1758717436865,0.01784288,113100.0,113090.0,0.1000069]
[1758717437068,0.01784288,113100.0,113090.0,0.76110564]
[1758717437476,0.01784288,113100.0,113090.0,0.84953469]
[1758717438072,0.01884288,113100.0,113090.0,0.85453469]
[1758717438669,0.01884288,113100.0,113090.0,1.25453469]
[1758717439766,0.01884288,113100.0,113090.0,1.25953469]
[1758717439968,0.01784288,113100.0,113090.0,1.26153469]
[1758717442766,0.01784288,113100.0,113090.0,2.06205469]
[1758717443772,0.01784288,113100.0,113090.0,1.26153469]
[1758717443972,0.41404288,113100.0,113090.0,1.01097595]
[1758717444169,0.90243198,113100.0,113090.0,1.01097595]
[1758717444366,0.8845891,113100.0,113090.0,0.40072779]
[1758717444567,0.8845891,113100.0,113090.0,0.92257905]
[1758717446375,1.16325784,113100.0,113090.0,0.12205905]
[1758717446673,1.16325784,113100.0,113090.0,0.21045595]
[1758717446874,0.8845891,113100.0,113090.0,0.21045595]
[1758717448677,1.16325784,113100.0,113090.0,0.21045595]
[1758717452577,1.16326825,113100.0,113090.0,0.4891351]
[1758717453378,1.07487915,113100.0,113090.0,0.4891351]
[1758717456079,1.16326825,113100.0,113090.0,0.4891351]
[1758717457581,1.16326825,113100.0,113090.0,0.21045595]
[1758717458179,1.16326825,113100.0,113090.0,0.4891351]
[1758717458384,1.16326825,113100.0,113090.0,0.21045595]
[1758717458681,1.16326825,113100.0,113090.0,0.4891351]
[1758717459082,1.16326825,113100.0,113090.0,0.21045595]
[1758717459281,1.16326825,113100.0,113090.0,0.4891351]
[1758717459481,0.76326825,113100.0,113090.0,0.4891351]
[1758717460183,0.3962,113100.0,113090.0,0.4891351]
[1758717460380,0.67487915,113100.0,113090.0,0.4891351]
[1758717465087,0.67487915,113100.0,113090.0,0.6474579]
[1758717465886,0.67487915,113100.0,113090.0,0.4891351]
[1758717468698,0.3962,113100.0,113090.0,0.4891351]
[1758717473202,0.3962,113100.0,113090.0,0.21045595]
[1758717473499,0.3962,113100.0,113090.0,0.4891351]
[1758717473697,0.3962,113100.0,113090.0,0.21045595]
[1758717474000,0.67487915,113100.0,113090.0,0.4891351]
[1758717474196,0.76326815,113100.0,113090.0,0.4891351]
[1758717474598,0.484589,113100.0,113090.0,0.6474579]
[1758717474900,0.76326815,113100.0,113090.0,0.6474579]
[1758717475401,0.76326815,113100.0,113090.0,0.4891351]
[1758717475902,0.67487915,113100.0,113090.0,0.4891351]
[1758717476305,0.3962,113100.0,113090.0,0.4891351]
[1758717476500,0.67487915,113100.0,113090.0,0.4891351]
[1758717477206,0.67487915,113100.0,113090.0,0.21045595]
[1758717477405,0.67487915,113100.0,113090.0,0.4891351]
[1758717480205,0.67487915,113100.0,113090.0,0.489135]
[1758717480206,0.76326815,113100.0,113090.0,0.489135]
[1758717481510,1.56494815,113100.0,113090.0,0.489135]
[1758717481902,1.56494815,113100.0,113090.0,0.6474578]
[1758717483001,2.26127071,113100.0,113090.0,0.25875185]
[1758717483201,2.26127071,113100.0,113090.0,0.1703228]
[1758717483703,2.26127071,113100.0,113090.0,0.012]
[1758717485510,2.26127071,113100.0,113090.0,0.1003967]
[1758717489510,2.26627071,113100.0,113090.0,0.0883967]
[1758717489711,0.1237267,113090.0,113080.0,0.5696302]
[1758717489906,0.76320585,113090.0,113080.0,0.5696302]
[1758717490103,0.76320585,113090.0,113080.0,0.65805143]
[1758717492222,0.76320585,113090.0,113080.0,0.65905143]
[1758717493119,0.76320585,113090.0,113080.0,0.50272863]
[1758717494913,0.76320585,113090.0,113080.0,0.66105143]
[1758717496217,0.76320585,113090.0,113080.0,0.38237228]
[1758717496522,0.76320585,113090.0,113080.0,0.66105143]
[1758717497223,0.76320585,113090.0,113080.0,0.50272863]
[1758717498124,0.76320585,113090.0,113080.0,0.13565018]
[1758717498325,0.76320585,113090.0,113080.0,0.41432933]
[1758717499828,0.76320585,113090.0,113080.0,0.02394895]
[1758717500030,0.76320585,113090.0,113080.0,0.3026281]
[1758717500228,0.76320585,113090.0,113080.0,0.3253881]
[1758717500429,0.76320585,113090.0,113080.0,0.04670895]
[1758717503134,0.76320585,113090.0,113080.0,0.13511345]
[1758717508142,0.76320585,113090.0,113080.0,0.02394895]
[1758717509334,0.76320585,113090.0,113080.0,0.02359187]
[1758717511942,0.76320585,113090.0,113080.0,0.04635187]
[1758717512140,0.76320585,113090.0,113080.0,0.02359187]
[1758717512642,0.76320585,113090.0,113080.0,0.003]
[1758717513032,1.441885,113090.0,113080.0,0.003]
[1758717514644,1.1633178,113090.0,113080.0,0.003]
[1758717518049,1.1633178,113090.0,113080.0,0.001]
[1758717518344,0.1233947,113080.0,113070.0,0.1111717]
[1758717518547,1.5638658,113080.0,113070.0,0.1111717]
[1758717518745,1.5638658,113080.0,113070.0,0.19960075]
[1758717520646,1.5638658,113080.0,113070.0,0.20060075]
[1758717522037,1.5638658,113080.0,113070.0,0.20260075]
[1758717522237,1.5638658,113080.0,113070.0,0.11418905]
[1758717526351,1.5638658,113080.0,113070.0,0.11218905]
[1758717527852,1.5688658,113080.0,113070.0,0.11118905]
[1758717529551,1.5688658,113080.0,113070.0,0.19960155]
[1758717530654,1.5688658,113080.0,113070.0,0.11118905]
[1758717534361,1.9296658,113080.0,113070.0,0.11118905]
[1758717542065,1.9296658,113080.0,113070.0,0.08842905]
[1758717542464,1.94754549,113080.0,113070.0,0.08842905]
[1758717542668,1.95758492,113080.0,113070.0,0.08842905]
[1758717542866,0.1233925,113070.0,113060.0,0.35933306]
[1758717543063,0.7629836,113070.0,113060.0,0.35933306]
[1758717543264,0.7629836,113070.0,113060.0,0.28944713]
[1758717543868,0.4841925,113070.0,113060.0,0.28944713]
[1758717544173,0.7629836,113070.0,113060.0,0.29144713]
[1758717544963,0.4841925,113070.0,113060.0,0.29144713]
[1758717545168,0.7629836,113070.0,113060.0,0.29144713]
[1758717546269,0.7629836,113070.0,113060.0,0.29244713]
[1758717548972,0.7629836,113070.0,113060.0,0.45076993]
[1758717550771,0.6745711,113070.0,113060.0,0.45076993]
[1758717551065,0.39578,113070.0,113060.0,0.45076993]
[1758717551871,0.4841925,113070.0,113060.0,0.45076993]
[1758717554472,0.4841925,113070.0,113060.0,0.29244713]
[1758717556574,0.7629836,113070.0,113060.0,0.29244713]
[1758717561682,0.6745711,113070.0,113060.0,0.29244713]
[1758717562380,0.7629835,113070.0,113060.0,0.29244713]
[1758717563085,0.4841924,113070.0,113060.0,0.29244713]
[1758717563278,0.7629835,113070.0,113060.0,0.29244713]
[1758717563882,0.39578,113070.0,113060.0,0.29244713]
[1758717564082,0.6745711,113070.0,113060.0,0.29244713]
[1758717565083,0.39578,113070.0,113060.0,0.45076993]
[1758717570687,0.6745711,113070.0,113060.0,0.45076993]
[1758717572379,0.39578,113070.0,113060.0,0.45076993]
[1758717572579,0.6745711,113070.0,113060.0,0.45076993]
[1758717574494,0.39578,113070.0,113060.0,0.45076993]
[1758717574791,0.67458656,113070.0,113060.0,0.72957649]
[1758717578195,0.67458656,113070.0,113060.0,0.45076993]
[1758717578388,0.67458656,113070.0,113060.0,0.72957649]
[1758717582796,0.67458656,113070.0,113060.0,0.57125369]
[1758717583997,0.31378656,113070.0,113060.0,0.57125369]
[1758717584297,0.67458656,113070.0,113060.0,0.57125369]
[1758717584902,1.19754,113070.0,113060.0,0.58286369]
[1758717585101,1.47634656,113070.0,113060.0,0.58286369]
[1758717585596,0.39578,113070.0,113060.0,0.86167025]
[1758717585798,0.39193969,113080.0,113070.0,0.0884125]
[1758717586101,1.49370625,113080.0,113070.0,0.39034906]
[1758717586599,1.49370625,113080.0,113070.0,0.47879375]
[1758717586799,0.41317969,113080.0,113070.0,0.49040375]
[1758717587510,0.69698625,113080.0,113070.0,0.47879375]
[1758717588008,0.78539095,113080.0,113070.0,0.48894551]
[1758717588505,0.78539095,113080.0,113070.0,0.21013895]
[1758717589210,0.78539095,113080.0,113070.0,0.48894551]
[1758717589614,0.78539095,113080.0,113070.0,0.21013895]
[1758717590216,0.78539095,113080.0,113070.0,0.48894551]
[1758717593618,0.78539095,113080.0,113070.0,0.21013895]
[1758717593816,0.78539095,113080.0,113070.0,0.48894551]
[1758717594116,0.78539095,113080.0,113070.0,0.21013895]
[1758717594316,0.69698625,113080.0,113070.0,0.21013895]
[1758717596820,1.58719095,113080.0,113070.0,0.48894551]
[1758717597024,1.58715095,113080.0,113070.0,0.48894551]
[1758717598121,1.58715095,113080.0,113070.0,0.21013895]
[1758717598421,1.58715095,113080.0,113070.0,0.48894551]
[1758717598919,1.58715095,113080.0,113070.0,0.21013895]
[1758717599112,1.58715095,113080.0,113070.0,0.48894551]
[1758717600715,1.58715095,113080.0,113070.0,0.21013895]
[1758717601023,1.58715095,113080.0,113070.0,0.48894551]
[1758717601323,1.58715095,113080.0,113070.0,0.21013895]
[1758717601525,1.58715095,113080.0,113070.0,0.48894551]
[1758717602012,1.49874625,113080.0,113070.0,0.48894551]
[1758717603323,1.58715095,113080.0,113070.0,0.48894551]
[1758717603510,1.49874625,113080.0,113070.0,0.48894551]
[1758717604625,1.58715095,113080.0,113070.0,0.48894551]
[1758717605023,1.49874625,113080.0,113070.0,0.48894551]
[1758717606222,1.21993969,113080.0,113070.0,0.48894551]
[1758717606525,1.20727969,113080.0,113070.0,0.50055551]
[1758717608327,0.84647969,113080.0,113070.0,0.50055551]
[1758717608528,0.04411969,113080.0,113070.0,0.50055551]
[1758717608831,0.04411969,113080.0,113070.0,0.22174895]
[1758717609128,0.04411969,113080.0,113070.0,0.50055551]
[1758717609331,0.02287969,113080.0,113070.0,1.17936207]
[1758717609626,0.02287969,113080.0,113070.0,1.33768487]
[1758717610231,0.02287969,113080.0,113070.0,1.17936207]
[1758717610439,0.02287969,113080.0,113070.0,0.62174895]
[1758717610624,0.02287969,113080.0,113070.0,1.17936207]
[1758717610927,0.005,113080.0,113070.0,1.54016207]
[1758717611730,0.3608,113090.0,113080.0,0.1231947]
[1758717611731,0.38391,113090.0,113080.0,0.1231947]
[1758717612030,0.3608,113090.0,113080.0,1.50391343]
[1758717612530,0.3608,113090.0,113080.0,1.5923503]
[1758717613330,0.3658,113090.0,113080.0,1.5923503]
[1758717613832,0.3658,113090.0,113080.0,1.03473718]
[1758717614032,0.3658,113090.0,113080.0,1.5923503]
[1758717614632,0.3658,113090.0,113080.0,1.03473718]
[1758717614832,0.005,113090.0,113080.0,1.5923503]
[1758717615132,0.005,113090.0,113080.0,1.03473718]
[1758717615331,0.005,113090.0,113080.0,1.5923503]
[1758717618432,0.005,113090.0,113080.0,1.7506731]
[1758717620634,0.005,113090.0,113080.0,1.19305998]
[1758717620836,0.005,113090.0,113080.0,1.7506731]
[1758717621435,0.005,113090.0,113080.0,2.1114731]
[1758717622133,0.005,113090.0,113080.0,2.5114731]
[1758717624032,0.005,113090.0,113080.0,2.3531503]
[1758717627439,0.005,113090.0,113080.0,2.5114731]
[1758717628327,0.005,113090.0,113080.0,2.52103272]
[1758717628938,0.005,113090.0,113080.0,2.36270992]
[1758717629634,0.005,113090.0,113080.0,1.8050968]
[1758717629834,0.005,113090.0,113080.0,2.36270992]
[1758717634637,0.005,113090.0,113080.0,2.08368997]
[1758717635242,0.005,113090.0,113080.0,2.24201277]
[1758717636142,0.005,113090.0,113080.0,2.08368997]
[1758717637948,0.005,113090.0,113080.0,2.29036134]
[1758717639438,0.005,113090.0,113080.0,1.89036134]
[1758717640444,0.005,113090.0,113080.0,1.68368997]
[1758717641545,0.37358,113110.0,113080.0,1.68368997]
[1758717641546,0.39598,113110.0,113100.0,0.1100191]
[1758717641845,0.39598,113110.0,113100.0,1.21385086]
[1758717642047,0.39598,113110.0,113100.0,1.30227991]
[1758717642846,0.39798,113110.0,113100.0,1.30227991]
[1758717643049,0.40798,113110.0,113100.0,1.30227991]
[1758717645250,0.40798,113110.0,113100.0,1.02368674]
[1758717645454,0.40798,113110.0,113100.0,0.49787991]
[1758717646253,0.40798,113110.0,113100.0,0.56835919]
[1758717653055,0.40798,113110.0,113100.0,0.28976602]
[1758717656765,0.40798,113110.0,113100.0,0.56835919]
[1758717659967,0.40798,113110.0,113100.0,0.28976602]
[1758717660168,0.40798,113110.0,113100.0,0.56835919]
[1758717660369,0.40798,113110.0,113100.0,0.72697221]
[1758717661166,0.40798,113110.0,113100.0,0.44837904]
[1758717661367,0.40798,113110.0,113100.0,0.72697221]
[1758717663672,0.40798,113110.0,113100.0,0.56835919]
[1758717672188,0.40798,113110.0,113100.0,0.28976602]
[1758717672392,0.40798,113110.0,113100.0,0.56835919]
[1758717673582,0.40798,113110.0,113100.0,0.57996919]
[1758717675392,0.04718,113110.0,113100.0,0.57996919]
[1758717675888,0.04718,113110.0,113100.0,0.56835919]
[1758717678091,0.04718,113110.0,113100.0,0.72697221]
[1758717678492,0.04718,113110.0,113100.0,0.44837904]
[1758717678693,0.04718,113110.0,113100.0,0.72697221]
[1758717678893,0.04718,113110.0,113100.0,0.56835919]
[1758717679093,0.04718,113110.0,113100.0,0.56831919]
[1758717679695,0.04718,113110.0,113100.0,0.72693221]
[1758717680596,0.04718,113110.0,113100.0,0.56831919]
[1758717681397,0.04718,113110.0,113100.0,0.28972602]
[1758717681600,0.0344,113110.0,113100.0,0.57992919]
[1758717682096,0.012,113110.0,113100.0,0.97992919]